fUSD/lending_fUSD_20260228
["ID","MTS","AMOUNT","RATE_DAILY","PERIOD"]
[406931398,1772287847358,-800.0,0.00017808,2]
[406931399,1772287847367,-14940.76909115,0.0001783,2]
[406931400,1772287847377,-20472.23292548,0.0001783,2]
[406931401,1772287847387,-500.0,0.00017863,2]
[406931402,1772287847396,-1075.2658489,0.0001789,2]
[406931403,1772287847406,-150.0,0.000179,2]
[406931404,1772287847416,-150.0,0.000179,2]
[406931405,1772287847426,-628.8649451,0.000179,2]
[406931406,1772287847435,-150.0,0.000179,2]
[406931407,1772287847445,-444.54400359,0.000179,2]
[406931408,1772287847454,-150.0,0.000179,2]
[406931409,1772287847464,-150.0,0.000179,2]
[406931410,1772287847474,-239.16328608,0.000179,2]
[406931411,1772287847483,-1511.80666641,0.000179,2]
[406931412,1772287847493,-7151.8763923,0.000179,2]
[406931413,1772287847502,-500.0,0.00017918,2]
[406931414,1772287847512,-350.0,0.00017919,2]
[406931415,1772287847521,-372.998721,0.00017941,2]
[406931416,1772287847531,-500.0,0.00017972,2]
[406931417,1772287847540,-534.47331008,0.0001799,2]
[406931418,1772287847550,-323.65928545,0.00017999,2]
[406931419,1772287847559,-300.0,0.00017999,2]
[406931420,1772287847570,-300.0,0.00017999,2]
[406931421,1772287847579,-292.6907697,0.00017999,2]
[406931422,1772287847589,-195.66587194,0.00017999,2]
[406931423,1772287847598,-6905177.24196699,0.00018,2]
[406931424,1772287847793,-500.0,0.00013698,2]
[406931425,1772287847803,-270.1160722,0.00013698,2]
[406931426,1772287847812,-211.26053873,0.00013847,2]
[406931427,1772287847852,-288.73946127,0.00013847,2]
[406931428,1772287847862,-500.0,0.00013847,2]
[406931429,1772287847872,-500.0,0.00013847,2]
[406931430,1772287847881,-640.38354289,0.00013847,2]
[406931431,1772287847891,-235.03057136,0.00013847,2]
[406931432,1772287847902,-66.60009576,0.00013847,2]
[406931433,1772287847912,-4862.58771195,0.00015713,2]
[406931434,1772287847922,-7138.28153231,0.000179,2]
[406931435,1772287847931,-781427.9552793,0.00018,2]
[406931436,1772287847944,-12688.72489011,0.00018,2]
[406931437,1772287848200,-296.09,0.00018,2]
[406931438,1772287848212,-25000.0,0.00018,2]
[406931439,1772287848225,-24904.90517027,0.00018,2]
[406931440,1772287848241,-8236.52489936,0.00018,2]
[406931441,1772287848252,-4250.91590251,0.00018,2]
[406931442,1772287920466,-14010.563991,7.945e-05,2]
[406931443,1772287956644,163.8,0.000171,117]
[406931444,1772287975701,-300.0,7.944e-05,2]
[406931445,1772287994169,-300.0,8.739e-05,2]
[406931446,1772287994193,-250.0,8.74e-05,2]
[406931448,1772288321651,245.7,0.000171,117]
[406931449,1772288462337,150.0,0.00012261,120]
[406931450,1772288790120,-166.66,0.00011781,2]
[406931451,1772288790141,-195.0,0.00011797,2]
[406931452,1772288790161,-300.0,0.00011812,2]
[406931453,1772288790184,-200.0,0.00011823,2]
[406931454,1772288790205,-500.0,0.00011843,2]
[406931455,1772288790226,-60.36160863,0.00011852,2]
[406931456,1772288970070,-500.0,0.00011879,2]
[406931457,1772288970092,-137.5364912,0.00011948,2]
[406931460,1772289031649,-362.4635088,0.00011948,2]
[406931462,1772289031661,-181.1364912,0.00011989,2]
[406931476,1772289031786,-118.8635088,0.00011989,2]
[406931478,1772289031799,-166.66,0.00012029,2]
[406931481,1772289031810,-812.07789343,0.00012036,2]
[406931483,1772289031822,-300.0,0.00012139,2]
[406931485,1772289031834,-1200.0,0.00012139,2]
[406931487,1772289031846,-300.0,0.00012139,2]
[406931489,1772289031864,-300.0,0.00012139,2]
[406931491,1772289031874,-300.0,0.00012139,2]
[406931494,1772289031886,-150.0,0.00012139,14]
[406931496,1772289031898,-500.0,0.0001214,2]
[406931498,1772289031911,-331.23,0.0001214,2]
[406931500,1772289031922,-150.99,0.0001214,2]
[406931501,1772289031935,-370.17859777,0.0001214,2]
[406931502,1772289031948,-5442.8,0.0001214,2]
[406931503,1772289031972,-626.26,0.0001214,2]
[406931504,1772289031985,-355.00000001,0.0001214,2]
[406931509,1772289037496,-200.0,0.00012137,2]
[406931510,1772289037511,-3205.75140222,0.0001214,2]
[406931511,1772289037523,-150.0,0.00012164,2]
[406931512,1772289037534,-299.99,0.00012165,2]
[406931513,1772289037545,-2332.20859778,0.00012165,2]
[406931514,1772289037614,-324.27,0.00012165,2]
[406931686,1772289039682,-7343.51140222,0.00012165,2]
[406931687,1772289039692,-9999.99,0.00012165,2]
[406931688,1772289039703,-999.99,0.00012165,2]
[406931689,1772289039713,-150.99,0.00012165,2]
[406931690,1772289039723,-4000.0,0.0001222,2]
[406931691,1772289039734,-150.0,0.00012261,2]
[406931692,1772289039744,-166.66,0.00012277,2]
[406931693,1772289039755,-2914.07,0.00012476,2]
[406931694,1772289039765,-500.0,0.00012498,2]
[406931695,1772289039775,-2247.92454066,0.000125,2]
[406931696,1772289039785,-4000.0,0.00012525,2]
[406931697,1772289039796,-166.66,0.00012525,2]
[406931698,1772289039806,-22326.52,0.00012575,2]
[406931699,1772289039816,-151.0,0.00012591,2]
[406931700,1772289039828,-151.0,0.00012591,2]
[406931701,1772289039839,-151.0,0.00012591,2]
[406931702,1772289039849,-151.0,0.00012591,2]
[406931703,1772289039861,-151.0,0.00012591,2]
[406931704,1772289039871,-151.0,0.00012591,2]
[406931705,1772289039881,-500.0,0.00012591,2]
[406931706,1772289039892,-151.0,0.00012591,2]
[406931707,1772289039902,-500.0,0.00012591,2]
[406931708,1772289039913,-151.0,0.00012591,2]
[406931709,1772289039924,-500.0,0.00012591,2]
[406931710,1772289039936,-500.0,0.00012591,2]
[406931711,1772289039949,-151.0,0.00012591,2]
[406931712,1772289039960,-500.0,0.00012591,2]
[406931713,1772289039971,-500.0,0.00012591,2]
[406931714,1772289039981,-151.0,0.00012591,2]
[406931715,1772289039991,-500.0,0.00012591,2]
[406931716,1772289040000,-500.0,0.00012591,2]
[406931717,1772289040010,-500.0,0.00012591,2]
[406931718,1772289040020,-151.0,0.00012591,2]
[406931719,1772289040032,-500.0,0.00012591,2]
[406931720,1772289040042,-500.0,0.00012591,2]
[406931721,1772289040052,-151.0,0.00012591,2]
[406931722,1772289040062,-500.0,0.00012591,2]
[406931723,1772289040071,-619.3241644,0.00012591,2]
[406931724,1772289040081,-151.0,0.00012591,2]
[406931726,1772289040277,-500.0,0.00012591,2]
[406931727,1772289040289,-151.0,0.00012591,2]
[406931728,1772289040299,-500.0,0.00012591,2]
[406931729,1772289040308,-151.0,0.00012591,2]
[406931730,1772289040318,-500.0,0.00012591,2]
[406931731,1772289040328,-151.0,0.00012591,2]
[406931732,1772289040337,-500.0,0.00012591,2]
[406931733,1772289040347,-151.0,0.00012591,2]
[406931734,1772289040358,-500.0,0.00012591,2]
[406931735,1772289040367,-151.0,0.00012591,2]
[406931736,1772289040377,-151.0,0.00012591,2]
[406931737,1772289040387,-151.0,0.00012591,2]
[406931738,1772289040396,-151.0,0.00012591,2]
[406931739,1772289040406,-151.0,0.00012591,2]
[406931740,1772289040415,-151.0,0.00012591,2]
[406931741,1772289040424,-151.0,0.00012591,2]
[406931742,1772289040433,-151.0,0.00012591,2]
[406931743,1772289040443,-151.0,0.00012591,2]
[406931744,1772289040452,-151.0,0.00012591,2]
[406931745,1772289040461,-151.0,0.00012591,2]
[406931746,1772289040471,-151.0,0.00012591,2]
[406931747,1772289040480,-151.0,0.00012591,2]
[406931748,1772289040489,-151.0,0.00012591,2]
[406931749,1772289040499,-151.0,0.00012591,2]
[406931750,1772289040513,-32888.5933,0.00012599,2]
[406931751,1772289040523,-1000.0,0.000126,2]
[406931752,1772289040532,-155.35,0.00012618,2]
[406931753,1772289040542,-823.18106367,0.00012738,2]
[406931754,1772289040554,-166.66,0.00012773,2]
[406931755,1772289040564,-1852.42,0.00012831,2]
[406931756,1772289040573,-4000.0,0.00012831,2]
[406931757,1772289040584,-3345.54201185,0.00012959,2]
[406931758,1772289040593,-250.0,0.00012959,2]
[406931759,1772289040602,-300.0,0.00012959,2]
[406931760,1772289040615,-500.0,0.00012959,2]
[406931761,1772289040624,-166.66,0.00013021,2]
[406931762,1772289040633,-300.0,0.00013037,2]
[406931763,1772289040642,-500.0,0.00013037,2]
[406931764,1772289040651,-253.38503941,0.00013037,2]
[406931765,1772289040661,-500.0,0.00013037,2]
[406931766,1772289040670,-150.0,0.00013048,2]
[406931767,1772289040679,-150.0,0.00013048,2]
[406931768,1772289040689,-200.0,0.00013103,2]
[406931769,1772289040698,-150.0,0.00013103,2]
[406931770,1772289040708,-4000.0,0.00013136,2]
[406931771,1772289040717,-300.0,0.00013143,2]
[406931772,1772289040726,-500.0,0.00013143,2]
[406931773,1772289040736,-329.63839137,0.00013143,2]
[406931774,1772289040745,-150.0,0.00013158,2]
[406931775,1772289040754,-150.0,0.00013212,2]
[406931776,1772289040763,-150.0,0.00013247,2]
[406931777,1772289040772,-150.0,0.00013267,2]
[406931778,1772289040783,-150.0,0.00013299,2]
[406931779,1772289040792,-150.0,0.00013299,2]
[406931780,1772289040802,-150.0,0.00013299,2]
[406931781,1772289040811,-150.0,0.00013299,2]
[406931782,1772289040820,-150.0,0.00013299,2]
[406931783,1772289040829,-150.0,0.00013299,2]
[406931784,1772289040838,-150.0,0.00013299,2]
[406931785,1772289040848,-155.59923113,0.00013299,2]
[406931786,1772289040858,-170.96140001,0.00013299,2]
[406931787,1772289040867,-150.0,0.00013299,2]
[406931788,1772289040876,-153.47951727,0.00013299,2]
[406931789,1772289040885,-150.0,0.00013299,2]
[406931790,1772289040894,-150.0,0.00013299,2]
[406931791,1772289040904,-3060.53029804,0.00013322,2]
[406931792,1772289040912,-250.0,0.00013322,2]
[406931793,1772289040922,-420.0,0.00013324,2]
[406931794,1772289040931,-420.0,0.00013324,2]
[406931795,1772289040940,-1680.0,0.00013352,2]
[406931796,1772289040950,-150.0,0.00013354,2]
[406931797,1772289040959,-150.0,0.00013354,2]
[406931798,1772289040968,-150.0,0.00013354,2]
[406931799,1772289040978,-150.0,0.00013354,2]
[406931800,1772289040987,-500.0,0.00013417,2]
[406931801,1772289040996,-4000.0,0.00013442,2]
[406931802,1772289041005,-4218.299999,0.000135,2]
[406931803,1772289041015,-3758.32102944,0.00013547,2]
[406931804,1772289041024,-1500.0,0.00013585,2]
[406931805,1772289041033,-3912.4126,0.00013598,2]
[406931806,1772289041042,-2036.805025,0.000136,2]
[406931807,1772289041058,-2704.05829764,0.00013646,2]
[406931808,1772289041067,-10000.0,0.00013647,2]
[406931809,1772289041076,-2500.0,0.00013647,2]
[406931810,1772289041086,-389.19571018,0.00013647,2]
[406931811,1772289041095,-275.19390699,0.00013647,2]
[406931812,1772289041104,-503.93555547,0.00013647,2]
[406931813,1772289041113,-2383.95879744,0.00013647,2]
[406931814,1772289041124,-790.37988065,0.00013647,2]
[406931815,1772289041133,-239.1632861,0.00013647,2]
[406931816,1772289041143,-16303.16,0.00013699,2]
[406931817,1772289041152,-843.23,0.00013699,2]
[406931818,1772289041161,-6821.22,0.00013699,2]
[406931819,1772289041170,-161.82,0.000137,2]
[406931820,1772289041179,-650.82124153,0.00013737,2]
[406931821,1772289041189,-650.82124153,0.00013737,2]
[406931822,1772289041199,-226.44,0.00013739,2]
[406931823,1772289041208,-151.0,0.00013744,2]
[406931824,1772289041217,-151.0,0.00013744,2]
[406931825,1772289041227,-151.0,0.00013744,2]
[406931826,1772289041236,-316.7905715,0.00013746,2]
[406931827,1772289041246,-500.0,0.00013746,2]
[406931828,1772289041256,-500.0,0.00013746,2]
[406931829,1772289041265,-255.73674079,0.00013746,2]
[406931830,1772289041274,-348.93150477,0.00013746,2]
[406931831,1772289041283,-1598.81743861,0.00013746,2]
[406931832,1772289041293,-1598.81743861,0.00013746,2]
[406931833,1772289041302,-1598.81743861,0.00013746,2]
[406931834,1772289041316,-1598.81743861,0.00013746,2]
[406931835,1772289041325,-1598.81743861,0.00013746,2]
[406931836,1772289041334,-1598.81743861,0.00013746,2]
[406931837,1772289041343,-1598.81743861,0.00013746,2]
[406931838,1772289041352,-1598.81743861,0.00013746,2]
[406931839,1772289041362,-1598.81743861,0.00013746,2]
[406931840,1772289041371,-1598.81743861,0.00013746,2]
[406931841,1772289041381,-1598.81743861,0.00013746,2]
[406931842,1772289041391,-1598.81743861,0.00013746,2]
[406931843,1772289041400,-1598.81743861,0.00013746,2]
[406931844,1772289041409,-1598.81743861,0.00013746,2]
[406931845,1772289041418,-1598.81743861,0.00013746,2]
[406931846,1772289041427,-1598.81743861,0.00013746,2]
[406931847,1772289041437,-1598.81743861,0.00013746,2]
[406931848,1772289041446,-1598.81743861,0.00013746,2]
[406931849,1772289041455,-1598.81743861,0.00013746,2]
[406931850,1772289041464,-1598.81743861,0.00013746,2]
[406931851,1772289041473,-1598.81743861,0.00013746,2]
[406931852,1772289041482,-1598.81743861,0.00013746,2]
[406931853,1772289041492,-1598.81743861,0.00013746,2]
[406931854,1772289041502,-1598.81743861,0.00013746,2]
[406931855,1772289041511,-1598.81743861,0.00013746,2]
[406931856,1772289041523,-1598.81743861,0.00013746,2]
[406931857,1772289041532,-1598.81743861,0.00013746,2]
[406931858,1772289041541,-1598.81743861,0.00013746,2]
[406931859,1772289041550,-1598.81743861,0.00013746,2]
[406931860,1772289041561,-1598.81743861,0.00013746,2]
[406931861,1772289041571,-1598.81743861,0.00013746,2]
[406931862,1772289041581,-1598.81743861,0.00013746,2]
[406931863,1772289041592,-1598.81743861,0.00013746,2]
[406931864,1772289041601,-1598.81743861,0.00013746,2]
[406931865,1772289041612,-1598.81743861,0.00013746,2]
[406931866,1772289041621,-1598.81743861,0.00013746,2]
[406931867,1772289041631,-1598.81743861,0.00013746,2]
[406931868,1772289041640,-1598.81743861,0.00013746,2]
[406931869,1772289041651,-1598.81743861,0.00013746,2]
[406931870,1772289041660,-1598.81743861,0.00013746,2]
[406931871,1772289041670,-1598.81743861,0.00013746,2]
[406931872,1772289041679,-1598.81743861,0.00013746,2]
[406931873,1772289041689,-1598.81743861,0.00013746,2]
[406931874,1772289041698,-1598.81743861,0.00013746,2]
[406931875,1772289041708,-1598.81743861,0.00013746,2]
[406931876,1772289041717,-1598.81743861,0.00013746,2]
[406931877,1772289041726,-1598.81743861,0.00013746,2]
[406931878,1772289041736,-1598.81743861,0.00013746,2]
[406931879,1772289041745,-1598.81743861,0.00013746,2]
[406931880,1772289041755,-1598.81743861,0.00013746,2]
[406931881,1772289041764,-1598.81743861,0.00013746,2]
[406931882,1772289041774,-1598.81743861,0.00013746,2]
[406931883,1772289041783,-1598.81743861,0.00013746,2]
[406931884,1772289041793,-1598.81743861,0.00013746,2]
[406931885,1772289041802,-1598.81743861,0.00013746,2]
[406931886,1772289041811,-1598.81743861,0.00013746,2]
[406931887,1772289041820,-1598.81743861,0.00013746,2]
[406931888,1772289041830,-1598.81743861,0.00013746,2]
[406931889,1772289041840,-1598.81743861,0.00013746,2]
[406931890,1772289041850,-1598.81743861,0.00013746,2]
[406931891,1772289041862,-1598.81743861,0.00013746,2]
[406931892,1772289041872,-1598.81743861,0.00013746,2]
[406931893,1772289041881,-1598.81743861,0.00013746,2]
[406931894,1772289041891,-1598.81743861,0.00013746,2]
[406931895,1772289041901,-1598.81743861,0.00013746,2]
[406931896,1772289041910,-1598.81743861,0.00013746,2]
[406931897,1772289041919,-1598.81743861,0.00013746,2]
[406931898,1772289041928,-1598.81743861,0.00013746,2]
[406931899,1772289041938,-1598.81743861,0.00013746,2]
[406931900,1772289041947,-1598.81743861,0.00013746,2]
[406931901,1772289041957,-1598.81743861,0.00013746,2]
[406931902,1772289041966,-1598.81743861,0.00013746,2]
[406931903,1772289041975,-1598.81743861,0.00013746,2]
[406931904,1772289041984,-1598.81743861,0.00013746,2]
[406931905,1772289041994,-1598.81743861,0.00013746,2]
[406931906,1772289042003,-1598.81743861,0.00013746,2]
[406931907,1772289042012,-1598.81743861,0.00013746,2]
[406931908,1772289042022,-1598.81743861,0.00013746,2]
[406931909,1772289042031,-1598.81743861,0.00013746,2]
[406931910,1772289042040,-1598.81743861,0.00013746,2]
[406931911,1772289042049,-1598.81743861,0.00013746,2]
[406931912,1772289042057,-1598.81743861,0.00013746,2]
[406931913,1772289042067,-1598.81743861,0.00013746,2]
[406931914,1772289042075,-1598.81743861,0.00013746,2]
[406931915,1772289042085,-1598.81743861,0.00013746,2]
[406931916,1772289042094,-1598.81743861,0.00013746,2]
[406931917,1772289042103,-1598.81743861,0.00013746,2]
[406931918,1772289042112,-1598.81743861,0.00013746,2]
[406931919,1772289042122,-1598.81743861,0.00013746,2]
[406931920,1772289042131,-1598.81743861,0.00013746,2]
[406931921,1772289042140,-500.0,0.00013746,2]
[406931922,1772289042149,-500.0,0.00013746,2]
[406931923,1772289042158,-500.0,0.00013746,2]
[406931924,1772289042168,-500.0,0.00013746,2]
[406931925,1772289042177,-500.0,0.00013746,2]
[406931926,1772289042187,-500.0,0.00013746,2]
[406931927,1772289042196,-500.0,0.00013746,2]
[406931928,1772289042206,-648.3262986,0.00013746,2]
[406931929,1772289042215,-483.13999169,0.00013746,2]
[406931930,1772289042225,-500.0,0.00013746,2]
[406931931,1772289042234,-500.0,0.00013746,2]
[406931932,1772289042243,-500.0,0.00013746,2]
[406931933,1772289042253,-500.0,0.00013746,2]
[406931934,1772289042263,-500.0,0.00013746,2]
[406931935,1772289042272,-500.0,0.00013746,2]
[406931936,1772289042281,-500.0,0.00013746,2]
[406931937,1772289042290,-500.0,0.00013746,2]
[406931938,1772289042300,-625.05,0.00013746,2]
[406931939,1772289042309,-500.0,0.00013746,2]
[406931940,1772289042318,-500.0,0.00013746,2]
[406931941,1772289042327,-500.0,0.00013746,2]
[406931942,1772289042336,-500.0,0.00013746,2]
[406931943,1772289042346,-500.0,0.00013746,2]
[406931944,1772289042355,-500.0,0.00013746,2]
[406931945,1772289042365,-500.0,0.00013746,2]
[406931946,1772289042375,-500.0,0.00013746,2]
[406931947,1772289042384,-500.0,0.00013746,2]
[406931948,1772289042394,-500.0,0.00013746,2]
[406931949,1772289042404,-500.0,0.00013746,2]
[406931950,1772289042413,-500.0,0.00013746,2]
[406931951,1772289042423,-356.46521615,0.00013746,2]
[406931952,1772289042433,-500.0,0.00013746,2]
[406931953,1772289042443,-2500000.0,0.00013747,2]
[406931954,1772289042452,-1471755.9542,0.00013747,2]
[406931955,1772289042462,-500.0,0.00013908,2]
[406931956,1772289042472,-500.0,0.00013908,2]
[406931957,1772289042482,-500.0,0.00013908,2]
[406931958,1772289042492,-500.0,0.00013908,2]
[406931959,1772289042502,-500.0,0.00013908,2]
[406931960,1772289042514,-500.0,0.00013908,2]
[406931961,1772289042524,-500.0,0.00013908,2]
[406931962,1772289042533,-500.0,0.00013908,2]
[406931963,1772289042542,-500.0,0.00013908,2]
[406931964,1772289042552,-500.0,0.00013908,2]
[406931965,1772289042562,-515.31004766,0.00013908,2]
[406931966,1772289042571,-500.0,0.00013908,2]
[406931967,1772289042580,-529.02288049,0.00013908,2]
[406931968,1772289042590,-500.0,0.00013908,2]
[406931969,1772289042600,-500.0,0.00013908,2]
[406931970,1772289042610,-500.0,0.00013908,2]
[406931971,1772289042620,-500.0,0.00013908,2]
[406931972,1772289042630,-500.0,0.00013908,2]
[406931973,1772289042639,-500.0,0.00013908,2]
[406931974,1772289042648,-500.0,0.00013908,2]
[406931975,1772289042658,-500.0,0.00013908,2]
[406931976,1772289042667,-500.0,0.00013908,2]
[406931977,1772289042676,-500.0,0.00013908,2]
[406931978,1772289042686,-226.44,0.00014013,2]
[406931979,1772289042696,-3758.32102941,0.00014031,2]
[406931980,1772289042705,-511.0,0.0001411,2]
[406931981,1772289042715,-483.71700532,0.00014253,2]
[406931982,1772289042724,-483.71700531,0.00014253,2]
[406931983,1772289042733,-2704.05829764,0.00014254,2]
[406931984,1772289042743,-226.44,0.00014287,2]
[406931985,1772289042753,-389.19571016,0.00014356,2]
[406931986,1772289042762,-6821.22,0.00014384,2]
[406931987,1772289042772,-1000.0,0.00014456,2]
[406931988,1772289042782,-1000.0,0.00014456,2]
[406931989,1772289042791,-1000.0,0.00014456,2]
[406931990,1772289042800,-220.89751845,0.00014456,2]
[406931991,1772289042810,-150.13473928,0.00014456,2]
[406931992,1772289042819,-310.22607572,0.00014456,2]
[406931993,1772289042828,-1000.0,0.00014456,2]
[406931994,1772289042838,-1000.0,0.00014456,2]
[406931995,1772289042847,-1000.0,0.00014456,2]
[406931996,1772289042857,-541.26009197,0.00014456,2]
[406931997,1772289042867,-1000.0,0.00014456,2]
[406931999,1772289042876,-1000.0,0.00014456,2]
[406932001,1772289042885,-1000.0,0.00014456,2]
[406932002,1772289042895,-1000.0,0.00014456,2]
[406932005,1772289042904,-1000.0,0.00014456,2]
[406932006,1772289042914,-1000.0,0.00014456,2]
[406932008,1772289042923,-3758.32102941,0.00014514,2]
[406932009,1772289042933,-226.44,0.00014561,2]
[406932010,1772289042943,-587.0,0.00014624,2]
[406932011,1772289042952,-180.0,0.00014624,2]
[406932012,1772289042963,-2177.0,0.00014688,2]
[406932013,1772289042973,-226.47421015,0.00014835,2]
[406932014,1772289042982,-2704.05829764,0.00014861,2]
[406932015,1772289042992,-169.43046208,0.000149,2]
[406932016,1772289043001,-1554.53826865,0.0001494,2]
[406932017,1772289043012,-3758.32102941,0.00014998,2]
[406932018,1772289043022,-432.0,0.00015,15]
[406932019,1772289043031,-1500.0,0.00015004,2]
[406932020,1772289043041,-1500.0,0.00015004,2]
[406932021,1772289043051,-1500.0,0.00015004,2]
[406932022,1772289043060,-1500.0,0.00015004,2]
[406932023,1772289043069,-1500.0,0.00015004,2]
[406932024,1772289043079,-1500.0,0.00015004,2]
[406932025,1772289043088,-618.86499239,0.00015004,2]
[406932026,1772289043098,-1500.0,0.00015004,2]
[406932027,1772289043108,-509.53925467,0.00015004,2]
[406932030,1772289043118,-203.36470484,0.00015004,2]
[406932031,1772289043127,-1500.0,0.00015004,2]
[406932032,1772289043137,-1500.0,0.00015004,2]
[406932033,1772289043147,-389.19571016,0.00015065,2]
[406932034,1772289043156,-267.35,0.00015068,2]
[406932035,1772289043166,-6821.22,0.00015068,2]
[406932036,1772289043175,-586.24041249,0.0001512,2]
[406932037,1772289043185,-1000.0,0.0001512,2]
[406932038,1772289043195,-2704.05829764,0.00015469,2]
[406932039,1772289043205,-3758.32102941,0.00015482,2]
[406932040,1772289043214,-8380.11708918,0.00015537,2]
[406932041,1772289043223,-712.37829793,0.00015552,2]
[406932042,1772289043233,-1798.53948142,0.00015552,2]
[406932043,1772289043242,-484.71516567,0.00015552,2]
[406932044,1772289043252,-2000.0,0.00015552,2]
[406932045,1772289043262,-1532.89246011,0.00015552,2]
[406932046,1772289043389,-1779.13777388,0.00015552,2]
[406932047,1772289043400,-1550.78546123,0.00015552,2]
[406932048,1772289043410,-2000.0,0.00015552,2]
[406932049,1772289043419,-1026.23779749,0.00015552,2]
[406932050,1772289043430,-250.0,0.00015661,2]
[406932051,1772289043440,-174.04581251,0.00015703,2]
[406932052,1772289043450,-160.0,0.00015703,2]
[406932053,1772289043459,-6821.22,0.00015753,2]
[406932054,1772289043469,-389.19571016,0.00015774,2]
[406932055,1772289043478,-275.19390699,0.00015774,2]
[406932056,1772289043488,-503.93555547,0.00015774,2]
[406932057,1772289043498,-2383.95879743,0.00015774,2]
[406932058,1772289043510,-790.37988063,0.00015774,2]
[406932059,1772289043520,-3758.32102941,0.00015965,2]
[406932060,1772289043530,-8380.11708918,0.0001601,2]
[406932061,1772289043539,-1849.89,0.00016046,2]
[406932062,1772289043550,-823.0,0.00016052,2]
[406932063,1772289043560,-2704.05829764,0.00016077,2]
[406932064,1772289043569,-1490.28139264,0.00016099,2]
[406932065,1772289043580,-2500.0,0.00016099,2]
[406932066,1772289043589,-9999.99,0.00016116,2]
[406932067,1772289043599,-150.0,0.00016165,2]
[406932068,1772289043611,-1378.0,0.00016438,2]
[406932069,1772289043621,-228.15,0.00016438,2]
[406932070,1772289043631,-266.81662109,0.00016438,2]
[406932071,1772289043641,-6821.22,0.00016438,2]
[406932072,1772289043651,-3758.32102941,0.00016449,2]
[406932073,1772289043660,-389.19571016,0.00016482,2]
[406932074,1772289043669,-8380.11708918,0.00016482,2]
[406932075,1772289043679,-1378.0,0.00016493,2]
[406932076,1772289043688,-1378.0,0.00016548,2]
[406932077,1772289043698,-1000.0,0.00016559,2]
[406932078,1772289043707,-1378.0,0.00016602,2]
[406932079,1772289043719,-3000.0,0.00016647,2]
[406932080,1772289043729,-1378.0,0.00016657,2]
[406932081,1772289043738,-2704.05829764,0.00016685,2]
[406932082,1772289043748,-1378.0,0.00016712,2]
[406932083,1772289043757,-1378.0,0.00016767,2]
[406932084,1772289043767,-308.99,0.00016784,2]
[406932085,1772289043776,-1378.0,0.00016822,2]
[406932086,1772289043786,-1378.0,0.00016876,2]
[406932087,1772289043795,-2000.0,0.0001691,2]
[406932088,1772289043805,-1378.0,0.00016931,2]
[406932089,1772289043815,-3758.32102941,0.00016933,2]
[406932090,1772289043825,-8380.11708918,0.00016955,2]
[406932091,1772289043834,-1378.0,0.00016986,2]
[406932092,1772289043844,-1015.21,0.00017,7]
[406932093,1772289043854,-500.0,0.00017,5]
[406932094,1772289043864,-2000.0,0.0001701,2]
[406932095,1772289043873,-2000.0,0.0001701,2]
[406932096,1772289043883,-1378.0,0.00017041,2]
[406932097,1772289043893,-1378.0,0.00017096,2]
[406932098,1772289043902,-151.0,0.00017099,2]
[406932099,1772289043912,-151.0,0.00017099,2]
[406932100,1772289043921,-500.0,0.00017099,2]
[406932101,1772289043931,-500.0,0.00017099,2]
[406932102,1772289043940,-500.0,0.00017099,2]
[406932103,1772289043950,-269.917619,0.00017099,2]
[406932104,1772289043959,-500.0,0.00017099,2]
[406932105,1772289043968,-500.0,0.00017099,2]
[406932106,1772289043977,-500.0,0.00017099,2]
[406932107,1772289043987,-500.0,0.00017099,2]
[406932108,1772289043996,-500.0,0.00017099,2]
[406932109,1772289044006,-500.0,0.00017099,2]
[406932110,1772289044016,-174.61919141,0.00017099,2]